Cogmind - Beta 16.1 @@@ ROGUE MODE // 2026.04.21 @ 03:22:24 Player: M4-TR4 Result: Destroyed by JC-VAO(R) with Subdweller Laser Performance ------------- Evolutions (0) 0 Regions Visited (2) 400 Robots Destroyed (19) 95 Value Destroyed (412) 412 Prototype IDs (0) 0 Alien Tech Used (0) 0 Bonus (0) 0 TOTAL SCORE: 907 Bonus ------- None Cogmind --------- Core Integrity 0/250 Matter 136/300 Energy 79/125 System Corruption 0% Temperature Cool (6) Movement Rolling (145) Ox3 Location -10/Subcaves Parts ------- > --- POWER (1) -------- Light Ion Engine > --- PROPULSION (2) --- Compact Wheel > --- UTILITY (2) ------ Improved Heat Sink High-capacity Storage Unit > --- WEAPON (2) ------- Riot Gun Shotgun > --- INVENTORY (20) --- Wheel Huge Storage Unit Structural Scanner Seismic Detector Propulsion Shielding Medium Laser Medium Laser Assault Rifle Shotgun Shotgun Battle Rifle Mining Laser Peak State ------------ > --- POWER ------------ Subdweller Power Source > --- PROPULSION ------- Aluminum Leg Aluminum Leg > --- UTILITY ---------- Improved Heat Sink High-capacity Storage Unit > --- WEAPON ----------- Shotgun Shotgun > --- INVENTORY -------- Light Ion Engine Wheel Compact Wheel Huge Storage Unit Structural Scanner Seismic Detector Propulsion Shielding Riot Gun Medium Laser Medium Laser Assault Rifle Shotgun Shotgun Battle Rifle Mining Laser [Rating: 14] Favorites ----------- Power Ion Engine Engine Ion Engine Propulsion Aluminum Leg Leg Aluminum Leg Wheel Wheel Utility High-capacity Storage Unit Device Improved Heat Sink Storage High-capacity Storage Unit Weapon Medium Laser Energy Gun Medium Laser Ballistic Gun Assault Rifle Special Weapon Mining Laser Build | -11 -10 -10 ------- Run | Yrd Mat Sub Slots Evolved . | . . . Power . | . . . Propulsion . | . . . Utility . | . . . Weapon . | . . . Parts Attached 19 | . 9 10 Power 2 | . . 2 Engine 2 | . . 2 Core . | . . . Reactor . | . . . Propulsion 7 | . 6 1 Treads . | . . . Leg 5 | . 4 1 Wheel 2 | . 2 . Hover . | . . . Flight . | . . . Utility 3 | . 2 1 Device 1 | . . 1 Storage 2 | . 2 . Processor . | . . . Hackware . | . . . Protection . | . . . Artifact . | . . . Weapon 7 | . 1 6 Energy Gun 2 | . . 2 Energy Cannon . | . . . Ballistic Gun 4 | . 1 3 Ballistic Cannon . | . . . Launcher . | . . . Special Weapon 1 | . . 1 Impact Weapon . | . . . Slashing Weapon . | . . . Piercing Weapon . | . . . Special Melee Weapon . | . . . Unidentified Prototypes . | . . . Parts Lost 10 | . 2 8 Power 2 | . . 2 Propulsion 5 | . 2 3 Utility . | . . . Weapon 3 | . . 3 Highest Loss Streak 4 | . 1 4 To Critical Strikes . | . . . Average Backups 13 | 4 12 15 Power . | 1 1 . Propulsion 2 | 2 2 2 Utility 3 | . 3 4 Weapon 6 | 1 6 7 Tool/Special . | . . . Unused Backups 12 | . 3 9 Power 2 | . 1 1 Propulsion . | . . . Utility 4 | . 1 3 Weapon 6 | . 1 5 Tool/Special . | . . . Average Slot Usage (%) 85 | . 84 86 Engine 12 | . 14 10 Leg 21 | . 18 26 Wheel 6 | . 9 . Device 1 | . . 5 Storage 14 | . 14 14 Energy Gun 13 | . 14 11 Ballistic Gun 14 | . 14 15 Peak Build Rating 14 | 6 8 14 Average Rating 7 | 6 6 9 On Entrance 6 | 6 6 8 Avg Prop Armor Cover (%) 9 | . 9 9 Naked Turns . | . . . Heaviest Build 89 | 14 89 52 Greatest Support 20 | 20 20 20 Greatest Overweight (x) 8 | . 8 2 Average Overweight (x) 3 | . 3 2 Largest Inventory Capacity 25 | 8 25 20 Average Capacity 19 | 8 20 20 Most Carried 16 | 6 16 16 Average Carried 13 | 4 12 15 Final Capacity 20 | 8 20 20 Final Carried 16 | 6 16 12 Class Distribution -------------------- 100% | Mutant Dominant Class ---------------- Mutant | -10/Materials Mutant | -10/Subcaves Resources | -11 -10 -10 ----------- Run | Yrd Mat Sub Matter Collected 505 | 239 177 89 Remotely . | . . . Salvage Created 585 | 110 251 224 Parts 35 | 5 15 15 Haulers Intercepted . | . . . Recyclers Shooed 1 | 1 . . Parts Field Recycled . | . . . Retrieved Matter . | . . . Parts Self-Destructed 9 | . . 9 Prevented . | . . . Parts Restored . | . . . Kills | -11 -10 -10 ------- Run | Yrd Mat Sub Combat Hostiles Destroyed 14 | . 7 7 Guns 14 | . 7 7 Classes Destroyed 8 | 2 4 2 Worker 1 | . 1 . Tunneler 2 | 2 . . Recycler 1 | 1 . . Operator 1 | . 1 . Swarmer 6 | . 3 3 Grunt 6 | . 4 2 Sentry 1 | . . 1 Subdweller 1 | . . 1 Best Kill Streak 3 | 2 3 3 Combat Bots Only 3 | . 2 3 Max Kills in Single Turn 1 | 1 1 1 Gunslinging . | . . . Exploded . | . . . Melee . | . . . Uniques/NPCs Destroyed . | . . . Combat | -11 -10 -10 -------- Run | Yrd Mat Sub Hostile Shots Fired 125 | . 53 72 Missed 26 | . 8 18 Hits 99 | . 45 54 Projectile 99 | . 45 54 Critical Strikes 2 | . 1 1 Damage Taken 1303 | . 534 769 Core 250 | . 73 177 Absorbed by Shields . | . . . Core Remaining (%) 100 | 100 . . Volleys Fired 80 | 13 34 33 Largest 2 | 2 2 2 Hottest 100 | 70 70 100 Shots Fired 145 | 26 58 61 Gun 142 | 26 58 58 Cannon . | . . . Launcher . | . . . Special 3 | . . 3 Kinetic 79 | 13 24 42 Thermal 62 | 13 34 15 Explosive . | . . . Electromagnetic 4 | . . 4 Robot Hit Streak 13 | 5 9 13 Robot Miss Streak 5 | 2 5 2 Penetration Max . | . . . Secondary Targets 2 | . . 2 Max Gunslinging Chain 1 | . . 1 Shots Hit Robots 97 | 14 34 49 Core Hits 31 | 4 14 13 Critical Kills . | . . . Critical Parts Destroyed . | . . . Critical Strikes 5 | 2 2 1 Burn 5 | 2 2 1 Melee Attacks . | . . . Impact . | . . . Slashing . | . . . Piercing . | . . . Sneak Attacks . | . . . Combat Hostiles . | . . . Follow-up Attacks . | . . . Damage Inflicted 973 | 185 446 342 Guns 960 | 185 433 342 Cannons . | . . . Explosions . | . . . Melee . | . . . Ramming 13 | . 13 . Kinetic 483 | 60 206 217 Thermal 477 | 125 227 125 Explosive . | . . . Electromagnetic . | . . . Impact . | . . . Slashing . | . . . Piercing . | . . . Highest Corruption . | . . . Average Corruption . | . . . Corruption Purged . | . . . Corruption Blocked . | . . . Overload Shots . | . . . Overflow Damage . | . . . Projectiles . | . . . Explosions . | . . . Melee . | . . . Knockbacks 1 | . 1 . Impact 1 | . 1 . Kinetic . | . . . Secondary . | . . . Self-Inflicted Damage . | . . . Shots . | . . . Rammed . | . . . Targets Rammed 3 | . 3 . Kicked 3 | . 3 . Crushed . | . . . Highest Temperature 251 | 63 251 2 Average Temperature 72 | 30 89 2 Received Heat Transfer 474 | . 258 216 Effects 2 | . 2 . Interference 2 | . 2 . Siege Activations . | . . . Martial Activations . | . . . Shielding Activations . | . . . Robots Disrupted . | . . . Combat Hostiles . | . . . Robots Corrupted . | . . . Combat Hostiles . | . . . Parts Fried . | . . . Impact Corruptions . | . . . Robots Melted . | . . . Combat Hostiles . | . . . Parts Melted 3 | . 3 . Heat Transferred 1776 | 518 814 444 Parts Sabotaged . | . . . Parts Stolen . | . . . Parts Stripped . | . . . Power Chain Reactions . | . . . Alert | -11 -10 -10 ------- Run | Yrd Mat Sub Maximum Alert Level . | . . . Low Security (%) 100 | 100 100 . Level 1 . | . . . Level 2 . | . . . Level 3 . | . . . Level 4 . | . . . Level 5 . | . . . High Security . | . . . Max Security . | . . . Peak Influence 79 | 10 79 . Initial . | . . . Average 10 | . 10 . Influence Increases 410 | 15 255 140 Destroy 0b10 Robot/C 260 | . 140 120 Destroy 0b10 Robot/NC 25 | 15 10 . Destroy Leader 50 | . 30 20 Lose Combat Pursuer 75 | . 75 . Influence Decreases 410 | 15 255 140 Time Decay 360 | 15 245 100 Lost Part 50 | . 10 40 Squads Dispatched 2 | . 2 . Investigation 2 | . 2 . Extermination . | . . . Reinforcement . | . . . Assault . | . . . Garrison . | . . . Intercept . | . . . Searches Triggered . | . . . Construction Impeded . | . . . Haulers Reinforced . | . . . Active Scanning Responses . | . . . Cargo Convoy Interrupts . | . . . Stealth | -11 -10 -10 --------- Run | Yrd Mat Sub Distress Signals 2 | . 2 . Communications Jammed . | . . . Distress Signals . | . . . Times Spotted 22 | . 14 8 Peak Tracking Total 5 | . 5 3 Tactical Retreats 2 | . 2 . Traps | -11 -10 -10 ------- Run | Yrd Mat Sub Traps Triggered 1 | . 1 . Indirectly . | . . . Trap Hack Attempts . | . . . Triggered . | . . . Disarmed . | . . . Reprogrammed . | . . . Reused . | . . . Traps Extracted . | . . . Installed . | . . . Triggered . | . . . Machines | -11 -10 -10 ---------- Run | Yrd Mat Sub Machines Disabled . | . . . Max in Single Turn . | . . . Machines Repaired . | . . . Machines Dismantled . | . . . Machines Sabotaged . | . . . Overloaded Fab Kills . | . . . Hacking | -11 -10 -10 --------- Run | Yrd Mat Sub Machines Accessed . | . . . Terminals . | . . . Fabricators . | . . . Repair Stations . | . . . Recycling Units . | . . . Scanalyzers . | . . . Garrison Access . | . . . Total Hacks . | . . . Successful . | . . . Failed . | . . . Catastrophic . | . . . Database Lockouts . | . . . Manual . | . . . Terminals . | . . . Fabricators . | . . . Repair Stations . | . . . Recycling Units . | . . . Scanalyzers . | . . . Garrison Access . | . . . Terminal Hacks . | . . . Fabricator Hacks . | . . . Repair Station Hacks . | . . . Recycling Unit Hacks . | . . . Scanalyzer . | . . . Garrison Access Hacks . | . . . Unauthorized Hacks . | . . . Terminals . | . . . Fabricators . | . . . Repair Stations . | . . . Recycling Units . | . . . Scanalyzers . | . . . Garrison Access . | . . . Data Cores Recovered 1 | . 1 . Used . | . . . Hacking Detections . | . . . Full Trace Events . | . . . Feedback Events . | . . . Feedback Blocked . | . . . Robot Schematics Acquired . | . . . Robots Built . | . . . Authchips . | . . . Time . | . . . Total Robot Build Rating . | . . . Part Schematics Acquired . | . . . Parts Built . | . . . Authchips . | . . . Time . | . . . Total Part Build Rating . | . . . Part Studies Acquired . | . . . Parts Repaired . | . . . Time . | . . . Parts Recycled . | . . . Recycled Matter . | . . . Retrieved Matter . | . . . Retrieved Components . | . . . Parts Scanalyzed . | . . . Part Schematics Acquired . | . . . Parts Damaged . | . . . Bothacking | -11 -10 -10 ------------ Run | Yrd Mat Sub Used RIF Installer . | . . . Robots Hacked . | . . . Non-combat . | . . . Combat . | . . . Robot Hacks Applied . | . . . Relay Couplers Released . | . . . Fabnet Peak Effective % . | . . . Robots Rewired . | . . . Allies Hacked . | . . . Hacks Repelled . | . . . Allies | -11 -10 -10 -------- Run | Yrd Mat Sub Total Allies . | . . . Largest Group . | . . . Highest-Rated Group . | . . . Highest-Rated Ally . | . . . Total Orders . | . . . Ally Attacks . | . . . Total Damage . | . . . Kills . | . . . Allies Corrupted . | . . . Allies Melted . | . . . Intel | -11 -10 -10 ------- Run | Yrd Mat Sub Active Infowar (turns) . | . . . Robot Analysis Total . | . . . Derelict Logs Recovered . | . . . Drone Launches . | . . . Drone Recoveries . | . . . Exploration | -11 -10 -10 ------------- Run | Yrd Mat Sub Turns Passed 2655 | 91 1713 851 Spaces Moved 861 | 9 579 273 Core . | . . . Treads . | . . . Legs 483 | 9 207 267 Wheels 378 | . 372 6 Hover . | . . . Flight . | . . . Fastest Speed 120 | 120 120 130 Average Speed 207 | 120 184 257 Slowest Speed 260 | 120 260 260 Overloaded Moves . | . . . Propulsion Burnouts . | . . . Robots Hopped . | . . . Potential Cave-ins . | . . . Cave-ins Triggered . | . . . Exploration Rate (%) 37 | 2 80 30 Regions Visited 2 Branch Regions 1 Pre-discovered Areas . | . . . Known Exits Taken . | . . . Unknown Exits Taken 2 | 1 1 . Scrap Searched . | . . . Spaces Dug . | . . . Terrain Destroyed . | . . . Melee . | . . . Projectile . | . . . AOE . | . . . Terrain Rammed . | . . . Walls Destroyed . | . . . Machines Disabled . | . . . Actions | -11 -10 -10 --------- Run | Yrd Mat Sub Total 1571 | 64 1153 354 Wait 583 | 39 511 33 Move 859 | 8 578 273 Hop . | . . . Pick Up 17 | 2 13 2 Fast Attach 3 | . 1 2 Attach 8 | . 2 6 Detach . | . . . Swap 14 | . 9 5 Drop 4 | 2 2 . Fire 80 | 13 34 33 Melee . | . . . Ram . | . . . Kick 3 | . 3 . Crush . | . . . Escape Stasis . | . . . Rewire . | . . . Trap . | . . . Miscellaneous . | . . . Route ------- -11/Scrapyard -10/Materials (discovered 5 exits: [*Mat x2] / [*Min x2] / [*Sub]) -10/Subcaves History --------- Turn | Location | Event 52 | -11/Scrapyard | Discovered new exit (range 2) 92 | -11/Scrapyard | Entered Materials 303 | -10/Materials | Build established: Mutant 328 | -10/Materials | Discovered new exit (range 16) 469 | -10/Materials | Discovered new exit (range 9) 549 | -10/Materials | Discovered new exit (range 8) 646 | -10/Materials | Discovered new exit (range 14) 692 | -10/Materials | Derelicts attacked the area 1787 | -10/Materials | Discovered new exit (range 8) 1805 | -10/Materials | Entered Subcaves 1806 | -10/Subcaves | Approached by a straggling Scientist 2326 | -10/Subcaves | Core integrity fell below 50% 2361 | -10/Subcaves | Lost 4 parts (1p1n2w) 2441 | -10/Subcaves | Shifting Twisted Machinery released Riot Gun 2446 | -10/Subcaves | Shifting Twisted Machinery released Battle Rifle 2603 | -10/Subcaves | Core integrity fell below 20% 2656 | -10/Subcaves | Destroyed by JC-VAO(R) with Subdweller Laser Last Messages --------------- 1N-UMP(c): "I think it's somewhere southwest of here" Riot Gun falls loose from the Twisted Machinery. Battle Rifle falls loose from the Twisted Machinery. 02466_ Acquired Riot Gun. 1N-UMP(c): "I think it's somewhere southwest of here" 02472_ Acquired Battle Rifle. 1N-UMP(c): "I think it's somewhere southwest of here" 02535_ Acquired Sub. Power Source. 1N-UMP(c): "I think it's somewhere southwest of here" 02593_ 6T-5LC(u) tweaks Twisted Machinery. 02606_ Aluminum Leg destroyed. 02608_ V1-CQR(R) destroyed. 02610_ Sub. Power Source destroyed. 02611_ 6T-5LC(u) builds Twisted Machinery. 02614_ Subatomizers dissect the Sub. Optics. 1N-UMP(c): "I think it's somewhere southwest of here" 02626_ Aluminum Leg destroyed. 02628_ Subatomizers dissect the Sub. Optics. 02633_ 6T-5LC(u) tweaks Twisted Machinery. 02644_ Shotgun destroyed. Map ----- +----------------------------------------------------+ | ##??????????????????????????# ## | | #??????????????????????????# " ## | | ###???????????????????????????# """ | | ##?????????????????????????????# " #### | | ##?????????????????????????????##" ###??### | | ??????????????????????????????"#"""#### #??????? | | ????????????????????????????? """ ### ##??????? | | ????????????????????????????# """"" #??????? | | ????????????????????????????# """"" # ##??????? | | ????????????????????????????? ##"" "#### ###?????? | | ????????????????????????????????#"""#### " #?????? | | ????????????????????????????????## ##????? | | ?????????????????????????????????## #????? | | ????????????????????????????###???# ! ##???? | | ????????????????????????##### ##### ##### | | ???????????????????????##c ## | | ???????????????????????# | | ???????????????????????# ## # | | ???????????????????????# ### ### | | ???????????????????????#""""###### #??# | | ???????????????????????# #??## ##??? | | ???????????????????????# #??# #????? | | #?????????????????????## ##### ### #?????? | | #?????????????????##"## ### #?? #?????? | | #????????????????##" ##?## ?? ????? | | #???????????????# "" @ #???#####?# ???? | | #??????????????# " u" R #?????????? ##??? | | #?????????????# "" "##" #????????? ##???? | | #?????????????## " ###?#### &&& #?????????? ????? | | #??????????????#"""#???????##&%[= #??????????????? | | #???????????????""???????????#&! #?????????????? | | ?????????????????????????????? #????????????? | | ?????????????????????????????? ######????????????? | | ?????????????????????????????? #?????????????????? | | ?????????????????????????????? ?????????????????? | | ??????????????????????????????? ?????????????????? | | ??????????????????????????????? ?????????????????? | | ?????????????????????????????????????????????????? | | ?????????????????????????????????????????????????? | | ?????????????????????????????????????????????????? | | ?????????????????????????????????????????????????? | | ?????????????????????????????????????????????????? | | ?????????????????????????????????????????????????? | | ?????????????????????????????????????????????????? | | ?????????????????????????????????????????????????? | | ?????????????????????????????????????????????????? | | ?????????????????????????????????????????????????? | | ?????????????????????????????????????????????????? | | ?????????????????????????????????????????????????? | | ?????????????????????????????????????????????????? | +----------------------------------------------------+ Best States ------------- Heat Dissipation 39 Energy Generation 15 Energy Capacity 250 Matter Stores 300 Matter Capacity 300 Sight Range 16 Terrain Scan Density 10 Evasion (%) 50 Item Schematics ----------------- None Robot Schematics ------------------ None Fabricated ------------ Nothing Repaired ---------- Nothing Studied --------- None Alien Tech Used ----------------- None Achievements -------------- None Challenges ------------ None Game ------ Seed CryofiberAntimatterMediator Manual? 0 Play Time 00:16:21 Cumulative 51.7 hours Start 2026.04.21 @ 03:07:13 End 2026.04.21 @ 03:22:24 Sessions 1 Manual Loads 0 Difficulty Rogue Special Mode None Game No. 29 Rogue 20 Adventurer 0 Explorer 9 Win Type - Total 2 Types 2/0/0/0/0/0/0/0/0/0 Lore% 29 Gallery% 35 Achievement% 39 Wizard Run 0 Options --------- Layout 0 ASCII 0 Keyboard 0 Movement Mouse Keybinds 0 Fullscreen 1 Font 18/SmallcapsGlow Map View 76x50 Zoom Use 0% Tactical HUD 1 Map Filters NONE Filters NONE Steam 1 RUN: a006434b-6175-4901-a662-8ce5914cc800